[Event "Late-Titled-Tuesday-Blitz-October-10-2023"]
[Site "Chess.com"]
[Date "2023.10.10"]
[Round "7"]
[White "Eliwood44"]
[Black "midedu"]
[Result "1-0"]
[WhiteElo "2490"]
[BlackElo "2093"]
[TimeControl "180+1"]
[EndTime "15:11:26 PDT"]
[Termination "Eliwood44 won by resignation"]

1. d4 {[%clk 0:03:00.9]} 1... Nf6 {[%clk 0:02:39.5]} 2. c4 {[%clk 0:03:00.4]}
2... g6 {[%clk 0:02:38.7]} 3. g3 {[%clk 0:02:57.8]} 3... Bg7 {[%clk 0:02:39.2]}
4. Bg2 {[%clk 0:02:58.1]} 4... d6 {[%clk 0:02:39.9]} 5. Nf3 {[%clk 0:02:58.2]}
5... O-O {[%clk 0:02:40.6]} 6. O-O {[%clk 0:02:58.6]} 6... Nc6 {[%clk
0:02:41.2]} 7. Nc3 {[%clk 0:02:58.1]} 7... a6 {[%clk 0:02:40.2]} 8. b3 {[%clk
0:02:58.1]} 8... Bd7 {[%clk 0:02:37.8]} 9. Bb2 {[%clk 0:02:56.5]} 9... Re8
{[%clk 0:02:34.8]} 10. e4 {[%clk 0:02:55.6]} 10... e5 {[%clk 0:02:31.2]} 11.
dxe5 {[%clk 0:02:55.8]} 11... dxe5 {[%clk 0:02:31]} 12. Nd5 {[%clk 0:02:56.1]}
12... Nxe4 {[%clk 0:02:17.8]} 13. Re1 {[%clk 0:02:49.2]} 13... f5 {[%clk
0:02:15.9]} 14. Qc2 {[%clk 0:02:31.4]} 14... h6 {[%clk 0:01:55.1]} 15. Rad1
{[%clk 0:02:21.6]} 15... Qc8 {[%clk 0:01:54.3]} 16. b4 {[%clk 0:02:18.5]} 16...
Ng5 {[%clk 0:01:45.8]} 17. Nxg5 {[%clk 0:02:10]} 17... hxg5 {[%clk 0:01:45.5]}
18. b5 {[%clk 0:02:10.9]} 18... Nd4 {[%clk 0:01:38.2]} 19. Bxd4 {[%clk
0:02:08.5]} 19... exd4 {[%clk 0:01:37.9]} 20. Ne7+ {[%clk 0:02:08.6]} 20... Rxe7
{[%clk 0:01:37.7]} 21. Rxe7 {[%clk 0:02:09.5]} 21... axb5 {[%clk 0:01:24.3]} 22.
cxb5 {[%clk 0:02:05.3]} 22... c5 {[%clk 0:01:09.2]} 23. bxc6 {[%clk 0:01:58.1]}
23... Bxc6 {[%clk 0:01:08.5]} 24. Qc4+ {[%clk 0:01:55]} 24... Kh8 {[%clk
0:01:04.4]} 25. Qf7 {[%clk 0:01:53]} 25... Qf8 {[%clk 0:01:01]} 26. Bxc6 {[%clk
0:01:45.6]} 26... bxc6 {[%clk 0:01:00.2]} 27. Qxf8+ {[%clk 0:01:37.5]} 27...
Bxf8 {[%clk 0:00:53.8]} 28. Re6 {[%clk 0:01:37.7]} 28... c5 {[%clk 0:00:53.4]}
29. Rxg6 {[%clk 0:01:37]} 29... Rxa2 {[%clk 0:00:52.7]} 30. Rxg5 {[%clk
0:01:36.2]} 30... Bg7 {[%clk 0:00:45.8]} 31. Rxf5 {[%clk 0:01:34.8]} 31... c4
{[%clk 0:00:45.8]} 32. Rc5 {[%clk 0:01:31.6]} 32... c3 {[%clk 0:00:44.8]} 33.
Kg2 {[%clk 0:01:28.6]} 33... Rd2 {[%clk 0:00:44.4]} 34. Rc1 {[%clk 0:01:25.9]}
34... Kg8 {[%clk 0:00:34.2]} 35. h4 {[%clk 0:01:21.5]} 35... Kf7 {[%clk
0:00:33.6]} 36. h5 {[%clk 0:01:20]} 36... Bh6 {[%clk 0:00:21.6]} 37. Ra1 {[%clk
0:01:08.4]} 37... Bf8 {[%clk 0:00:11.1]} 38. Ra7+ {[%clk 0:01:07.3]} 38... Be7
{[%clk 0:00:08.5]} 39. h6 {[%clk 0:01:06.7]} 1-0

[Event "Late-Titled-Tuesday-Blitz-October-10-2023"]
[Site "Chess.com"]
[Date "2023.10.10"]
[Round "7"]
[White "hakanazeri2"]
[Black "StarkyNZ"]
[Result "0-1"]
[WhiteElo "2599"]
[BlackElo "2370"]
[TimeControl "180+1"]
[EndTime "15:11:34 PDT"]
[Termination "StarkyNZ won on time"]

1. Nf3 {[%clk 0:02:55.6]} 1... Nf6 {[%clk 0:02:59.3]} 2. c4 {[%clk 0:02:55.8]}
2... c5 {[%clk 0:02:58.1]} 3. Nc3 {[%clk 0:02:55.2]} 3... Nc6 {[%clk 0:02:56]}
4. g3 {[%clk 0:02:48.9]} 4... g6 {[%clk 0:02:52.1]} 5. Bg2 {[%clk 0:02:43.5]}
5... Bg7 {[%clk 0:02:52]} 6. d4 {[%clk 0:02:43]} 6... cxd4 {[%clk 0:02:48]} 7.
Nxd4 {[%clk 0:02:43.9]} 7... O-O {[%clk 0:02:43.6]} 8. O-O {[%clk 0:02:43.6]}
8... Nxd4 {[%clk 0:02:41.1]} 9. Qxd4 {[%clk 0:02:44.5]} 9... d6 {[%clk
0:02:37.2]} 10. Qd3 {[%clk 0:02:42.4]} 10... Be6 {[%clk 0:02:32]} 11. b3 {[%clk
0:02:34.9]} 11... Rb8 {[%clk 0:02:29.1]} 12. Bb2 {[%clk 0:02:19.7]} 12... a6
{[%clk 0:02:24]} 13. a4 {[%clk 0:01:47.8]} 13... Qa5 {[%clk 0:02:21]} 14. e4
{[%clk 0:01:41.6]} 14... Rfc8 {[%clk 0:02:17.9]} 15. Rab1 {[%clk 0:01:39.3]}
15... Qh5 {[%clk 0:02:14.5]} 16. Nd5 {[%clk 0:01:09.3]} 16... Nxd5 {[%clk
0:02:11.4]} 17. exd5 {[%clk 0:01:08.9]} 17... Bf5 {[%clk 0:02:04.9]} 18. Be4
{[%clk 0:01:07.2]} 18... Bxb2 {[%clk 0:02:02.3]} 19. Rxb2 {[%clk 0:01:01.8]}
19... Bh3 {[%clk 0:01:44.4]} 20. Re1 {[%clk 0:00:54.7]} 20... b5 {[%clk
0:01:42.9]} 21. cxb5 {[%clk 0:00:32.7]} 21... axb5 {[%clk 0:01:43.8]} 22. Bf3
{[%clk 0:00:32.6]} 22... Qg5 {[%clk 0:01:37.2]} 23. axb5 {[%clk 0:00:31.5]}
23... Qf6 {[%clk 0:01:34.6]} 24. Qe2 {[%clk 0:00:24.1]} 24... Rc5 {[%clk
0:01:31.2]} 25. Ra2 {[%clk 0:00:09.6]} 25... Rcxb5 {[%clk 0:01:26.2]} 26. Bg2
{[%clk 0:00:09.9]} 26... Bxg2 {[%clk 0:01:10.2]} 27. Kxg2 {[%clk 0:00:10.7]}
27... Rxb3 {[%clk 0:01:09.8]} 28. Qxe7 {[%clk 0:00:10.8]} 28... Qf3+ {[%clk
0:01:07.7]} 29. Kg1 {[%clk 0:00:10.6]} 29... Rb1 {[%clk 0:01:04.9]} 30. Re2
{[%clk 0:00:08.9]} 30... R8b5 {[%clk 0:00:57.2]} 31. Qd8+ {[%clk 0:00:02.3]}
31... Kg7 {[%clk 0:00:55.8]} 0-1

[Event "Late-Titled-Tuesday-Blitz-October-10-2023"]
[Site "Chess.com"]
[Date "2023.10.10"]
[Round "7"]
[White "Hrant_ChessMood"]
[Black "Alex_Sahakyan2006"]
[Result "1-0"]
[WhiteElo "2943"]
[BlackElo "2749"]
[TimeControl "180+1"]
[EndTime "15:11:43 PDT"]
[Termination "Hrant_ChessMood won by checkmate"]

1. c4 {[%clk 0:03:00.9]} 1... c5 {[%clk 0:02:55.6]} 2. Nf3 {[%clk 0:03:00.6]}
2... g6 {[%clk 0:02:55.7]} 3. Nc3 {[%clk 0:02:57.7]} 3... Bg7 {[%clk 0:02:56]}
4. e3 {[%clk 0:02:58.1]} 4... Nf6 {[%clk 0:02:55.4]} 5. d4 {[%clk 0:02:57.4]}
5... cxd4 {[%clk 0:02:56.3]} 6. exd4 {[%clk 0:02:58.2]} 6... d5 {[%clk 0:02:57]}
7. cxd5 {[%clk 0:02:58.7]} 7... Nxd5 {[%clk 0:02:57.6]} 8. Bc4 {[%clk
0:02:58.4]} 8... Nxc3 {[%clk 0:02:57.6]} 9. bxc3 {[%clk 0:02:58.1]} 9... O-O
{[%clk 0:02:57.2]} 10. O-O {[%clk 0:02:57.3]} 10... Qc7 {[%clk 0:02:57.8]} 11.
Qb3 {[%clk 0:02:43]} 11... Nc6 {[%clk 0:02:57.7]} 12. Be2 {[%clk 0:02:39.5]}
12... Na5 {[%clk 0:02:53.8]} 13. Qb4 {[%clk 0:02:38.8]} 13... Be6 {[%clk
0:02:50.3]} 14. Bg5 {[%clk 0:02:37.8]} 14... Rfc8 {[%clk 0:02:46.6]} 15. Rac1
{[%clk 0:02:33]} 15... Bxa2 {[%clk 0:02:25.8]} 16. Bxe7 {[%clk 0:02:12]} 16...
Nc6 {[%clk 0:02:18.2]} 17. Qa3 {[%clk 0:02:12.2]} 17... Qxe7 {[%clk 0:02:12.8]}
18. Qxa2 {[%clk 0:02:12]} 18... Bf6 {[%clk 0:01:58]} 19. Bc4 {[%clk 0:02:08.7]}
19... Kg7 {[%clk 0:01:55.7]} 20. g3 {[%clk 0:02:01.9]} 20... Qd7 {[%clk
0:01:47.7]} 21. Kg2 {[%clk 0:02:00.1]} 21... b6 {[%clk 0:01:47.1]} 22. h4 {[%clk
0:01:55.2]} 22... h5 {[%clk 0:01:46]} 23. Rfe1 {[%clk 0:01:55.4]} 23... Na5
{[%clk 0:01:36.5]} 24. Bd5 {[%clk 0:01:51.9]} 24... Rab8 {[%clk 0:01:36.6]} 25.
c4 {[%clk 0:01:48.1]} 25... Nc6 {[%clk 0:01:26.2]} 26. Bxc6 {[%clk 0:01:36.3]}
26... Qxc6 {[%clk 0:01:27.1]} 27. d5 {[%clk 0:01:37.1]} 27... Qd6 {[%clk
0:01:26.6]} 28. Nd2 {[%clk 0:01:36.6]} 28... Qb4 {[%clk 0:01:13.8]} 29. Ne4
{[%clk 0:01:32.4]} 29... Be5 {[%clk 0:01:13.8]} 30. Ng5 {[%clk 0:01:19.6]} 30...
Bf6 {[%clk 0:01:09.3]} 31. Ne4 {[%clk 0:01:17.8]} 31... Be5 {[%clk 0:01:09.3]}
32. Qxa7 {[%clk 0:01:06.3]} 32... Rxc4 {[%clk 0:00:59.1]} 33. Ng5 {[%clk
0:01:06.4]} 33... Bc7 {[%clk 0:00:43.5]} 34. Rxc4 {[%clk 0:00:42.5]} 34... Qxc4
{[%clk 0:00:44.4]} 35. Re7 {[%clk 0:00:39.4]} 35... Qxd5+ {[%clk 0:00:37.6]} 36.
Kh2 {[%clk 0:00:39.7]} 36... Rb7 {[%clk 0:00:35]} 37. Qa1+ {[%clk 0:00:36]}
37... Kg8 {[%clk 0:00:17.1]} 38. Re8# {[%clk 0:00:32.4]} 1-0

[Event "Late-Titled-Tuesday-Blitz-October-10-2023"]
[Site "Chess.com"]
[Date "2023.10.10"]
[Round "7"]
[White "Thormento16"]
[Black "karinachess1"]
[Result "1/2-1/2"]
[WhiteElo "2303"]
[BlackElo "2589"]
[TimeControl "180+1"]
[EndTime "15:11:43 PDT"]
[Termination "Game drawn - insufficient material"]

1. e4 {[%clk 0:03:00.9]} 1... e5 {[%clk 0:03:00]} 2. Nf3 {[%clk 0:03:00.8]} 2...
Nc6 {[%clk 0:03:00.5]} 3. d4 {[%clk 0:03:01.2]} 3... exd4 {[%clk 0:03:00.6]} 4.
Nxd4 {[%clk 0:03:02.1]} 4... Bc5 {[%clk 0:03:00.9]} 5. Be3 {[%clk 0:03:00.6]}
5... Qf6 {[%clk 0:03:00.5]} 6. c3 {[%clk 0:03:01.3]} 6... Nge7 {[%clk
0:03:00.7]} 7. g3 {[%clk 0:02:54.1]} 7... d5 {[%clk 0:02:41.9]} 8. Bg2 {[%clk
0:02:53.4]} 8... dxe4 {[%clk 0:02:38.1]} 9. Nd2 {[%clk 0:02:53.3]} 9... Bxd4
{[%clk 0:02:24.7]} 10. cxd4 {[%clk 0:02:52.4]} 10... Bf5 {[%clk 0:02:20.5]} 11.
Nxe4 {[%clk 0:02:52.7]} 11... Bxe4 {[%clk 0:02:20.3]} 12. Bxe4 {[%clk
0:02:53.6]} 12... O-O {[%clk 0:02:15.7]} 13. O-O {[%clk 0:02:53.2]} 13... Rad8
{[%clk 0:02:09.8]} 14. Qc2 {[%clk 0:02:52.5]} 14... Nxd4 {[%clk 0:01:57.6]} 15.
Bxd4 {[%clk 0:02:44.7]} 15... Rxd4 {[%clk 0:01:58.5]} 16. Bxh7+ {[%clk
0:02:44.8]} 16... Kh8 {[%clk 0:01:59]} 17. Be4 {[%clk 0:02:43.4]} 17... c6
{[%clk 0:01:57.4]} 18. Rad1 {[%clk 0:02:38.2]} 18... Rfd8 {[%clk 0:01:57.6]} 19.
Bg2 {[%clk 0:02:37.9]} 19... Rxd1 {[%clk 0:01:27]} 20. Rxd1 {[%clk 0:02:36.8]}
20... Rxd1+ {[%clk 0:01:26.8]} 21. Qxd1 {[%clk 0:02:37.7]} 21... Qxb2 {[%clk
0:01:27.1]} 22. Qd8+ {[%clk 0:02:32.9]} 22... Ng8 {[%clk 0:01:27.2]} 23. Qh4+
{[%clk 0:02:33.4]} 23... Nh6 {[%clk 0:01:27.2]} 24. Qd8+ {[%clk 0:02:31.2]}
24... Kh7 {[%clk 0:01:27.1]} 25. Be4+ {[%clk 0:02:30.5]} 25... g6 {[%clk
0:01:27.4]} 26. Qe7 {[%clk 0:02:26]} 26... a5 {[%clk 0:01:04.8]} 27. Kg2 {[%clk
0:02:25.4]} 27... a4 {[%clk 0:00:59.4]} 28. a3 {[%clk 0:02:25.2]} 28... Qb3
{[%clk 0:00:55.2]} 29. Bf3 {[%clk 0:02:13]} 29... Nf5 {[%clk 0:00:48.1]} 30. Qd7
{[%clk 0:02:09.8]} 30... Qxa3 {[%clk 0:00:35.5]} 31. Qxf7+ {[%clk 0:02:09.5]}
31... Ng7 {[%clk 0:00:36.2]} 32. Qxb7 {[%clk 0:02:09.4]} 32... Qd6 {[%clk
0:00:30.5]} 33. Qxc6 {[%clk 0:01:57.6]} 33... Qxc6 {[%clk 0:00:20]} 34. Bxc6
{[%clk 0:01:58.5]} 34... a3 {[%clk 0:00:20.9]} 35. Bd5 {[%clk 0:01:58.6]} 35...
Nf5 {[%clk 0:00:19.3]} 36. Kf3 {[%clk 0:01:50]} 36... Ne7 {[%clk 0:00:17.9]} 37.
Bb3 {[%clk 0:01:45.3]} 37... Kg7 {[%clk 0:00:15]} 38. Ke4 {[%clk 0:01:44.3]}
38... Kf6 {[%clk 0:00:15.5]} 39. f4 {[%clk 0:01:43]} 39... Nf5 {[%clk
0:00:10.9]} 40. g4 {[%clk 0:01:39.9]} 40... Nd6+ {[%clk 0:00:08.8]} 41. Kd5
{[%clk 0:01:40.1]} 41... Nb5 {[%clk 0:00:08.6]} 42. Kc4 {[%clk 0:01:31.5]} 42...
Nd6+ {[%clk 0:00:08.6]} 43. Kb4 {[%clk 0:01:30.1]} 43... Ne4 {[%clk 0:00:09]}
44. Kxa3 {[%clk 0:01:26.6]} 44... Nf2 {[%clk 0:00:09.4]} 45. g5+ {[%clk
0:01:07.9]} 45... Kf5 {[%clk 0:00:09.8]} 46. Bc2+ {[%clk 0:01:08.1]} 46... Kxf4
{[%clk 0:00:10.2]} 47. Bxg6 {[%clk 0:01:08.4]} 47... Kxg5 {[%clk 0:00:10.8]} 48.
h4+ {[%clk 0:01:08.3]} 48... Kxg6 {[%clk 0:00:10.4]} 49. h5+ {[%clk 0:01:07.6]}
49... Kxh5 {[%clk 0:00:11.3]} 1/2-1/2

[Event "Late-Titled-Tuesday-Blitz-October-10-2023"]
[Site "Chess.com"]
[Date "2023.10.10"]
[Round "7"]
[White "Sofiia_Hryzlova"]
[Black "DIMONBANAN"]
[Result "0-1"]
[WhiteElo "2326"]
[BlackElo "2508"]
[TimeControl "180+1"]
[EndTime "15:11:43 PDT"]
[Termination "DIMONBANAN won by checkmate"]

1. e4 {[%clk 0:03:00.9]} 1... e5 {[%clk 0:02:56.7]} 2. f4 {[%clk 0:02:56.6]}
2... exf4 {[%clk 0:02:56.4]} 3. Nf3 {[%clk 0:02:56.4]} 3... h6 {[%clk
0:02:56.2]} 4. h4 {[%clk 0:02:49.5]} 4... Nf6 {[%clk 0:02:13.7]} 5. Nc3 {[%clk
0:02:38.3]} 5... Bb4 {[%clk 0:02:03]} 6. d3 {[%clk 0:02:28.7]} 6... O-O {[%clk
0:01:54.5]} 7. Bxf4 {[%clk 0:02:27.7]} 7... Nc6 {[%clk 0:01:55]} 8. a3 {[%clk
0:01:57.9]} 8... Ba5 {[%clk 0:01:43.9]} 9. b4 {[%clk 0:01:53.3]} 9... Bb6 {[%clk
0:01:44.2]} 10. Qd2 {[%clk 0:01:47.9]} 10... d5 {[%clk 0:01:37.2]} 11. e5 {[%clk
0:01:47.6]} 11... Re8 {[%clk 0:01:31.5]} 12. O-O-O {[%clk 0:01:43.7]} 12... d4
{[%clk 0:01:22.1]} 13. exf6 {[%clk 0:01:36.8]} 13... dxc3 {[%clk 0:01:22]} 14.
Qxc3 {[%clk 0:01:37.7]} 14... Nd4 {[%clk 0:01:19.7]} 15. fxg7 {[%clk 0:01:27.2]}
15... Nxf3 {[%clk 0:01:17.9]} 16. gxf3 {[%clk 0:01:19.8]} 16... Bd4 {[%clk
0:01:18.1]} 17. Qxc7 {[%clk 0:01:16.7]} 17... Qf6 {[%clk 0:01:03.1]} 18. Kb1
{[%clk 0:00:54.4]} 18... Be6 {[%clk 0:00:57.3]} 19. Bc1 {[%clk 0:00:42.4]} 19...
Rac8 {[%clk 0:00:46.8]} 20. Qf4 {[%clk 0:00:41.9]} 20... Ba2+ {[%clk 0:00:36.2]}
21. Kxa2 {[%clk 0:00:18.7]} 21... Rxc2+ {[%clk 0:00:37.1]} 22. Kb1 {[%clk
0:00:12.7]} 22... Qe6 {[%clk 0:00:13.5]} 23. Qxd4 {[%clk 0:00:02.9]} 23... Qa2#
{[%clk 0:00:13.1]} 0-1

[Event "Late-Titled-Tuesday-Blitz-October-10-2023"]
[Site "Chess.com"]
[Date "2023.10.10"]
[Round "7"]
[White "ElenGajger"]
[Black "annacramling"]
[Result "1-0"]
[WhiteElo "2373"]
[BlackElo "2200"]
[TimeControl "180+1"]
[EndTime "15:11:45 PDT"]
[Termination "ElenGajger won on time"]

1. e4 {[%clk 0:03:00]} 1... d6 {[%clk 0:02:58]} 2. d4 {[%clk 0:02:54.2]} 2... e6
{[%clk 0:02:57.4]} 3. Nc3 {[%clk 0:02:54]} 3... Nd7 {[%clk 0:02:57.8]} 4. Nf3
{[%clk 0:02:53.9]} 4... Nb6 {[%clk 0:02:58.4]} 5. Bd3 {[%clk 0:02:53.2]} 5...
Ne7 {[%clk 0:02:59.1]} 6. O-O {[%clk 0:02:53.2]} 6... Ng6 {[%clk 0:02:59.8]} 7.
Be3 {[%clk 0:02:50.9]} 7... e5 {[%clk 0:02:59.8]} 8. h3 {[%clk 0:02:47.6]} 8...
Be7 {[%clk 0:02:55.3]} 9. a4 {[%clk 0:02:46]} 9... a5 {[%clk 0:02:55.1]} 10.
dxe5 {[%clk 0:02:43.2]} 10... dxe5 {[%clk 0:02:51.4]} 11. Bb5+ {[%clk
0:02:42.1]} 11... c6 {[%clk 0:02:49.1]} 12. Qxd8+ {[%clk 0:02:39.9]} 12... Bxd8
{[%clk 0:02:50]} 13. Be2 {[%clk 0:02:39.4]} 13... O-O {[%clk 0:02:46.1]} 14.
Rad1 {[%clk 0:02:38.6]} 14... Bc7 {[%clk 0:02:31.2]} 15. Bc5 {[%clk 0:02:37.9]}
15... Re8 {[%clk 0:02:30.1]} 16. Rd2 {[%clk 0:02:06.3]} 16... Nf4 {[%clk
0:02:23.4]} 17. Bxb6 {[%clk 0:01:56.9]} 17... Bxb6 {[%clk 0:02:20.1]} 18. Bc4
{[%clk 0:01:50.5]} 18... Bc7 {[%clk 0:01:46.8]} 19. Ng5 {[%clk 0:01:43.2]} 19...
Rf8 {[%clk 0:01:40.7]} 20. Rfd1 {[%clk 0:01:34.5]} 20... h6 {[%clk 0:01:32.7]}
21. Nxf7 {[%clk 0:01:31.1]} 21... Rxf7 {[%clk 0:01:32.8]} 22. Bxf7+ {[%clk
0:01:32]} 22... Kxf7 {[%clk 0:01:32.8]} 23. Rd7+ {[%clk 0:01:32.4]} 23... Bxd7
{[%clk 0:01:31]} 24. Rxd7+ {[%clk 0:01:31.9]} 24... Kf6 {[%clk 0:01:13.3]} 25.
Rxc7 {[%clk 0:01:32.8]} 25... Rd8 {[%clk 0:00:52.9]} 26. Rxb7 {[%clk 0:01:28.8]}
26... Rd2 {[%clk 0:00:48.7]} 27. Rb6 {[%clk 0:01:26]} 27... Rxc2 {[%clk
0:00:23.6]} 28. Rxc6+ {[%clk 0:01:25.4]} 28... Kf7 {[%clk 0:00:23.9]} 29. Ra6
{[%clk 0:01:20.7]} 29... Rxb2 {[%clk 0:00:20.7]} 30. Rxa5 {[%clk 0:01:20.1]}
30... Rc2 {[%clk 0:00:12.7]} 31. Rxe5 {[%clk 0:01:19.6]} 31... Nxh3+ {[%clk
0:00:03.8]} 32. gxh3 {[%clk 0:01:20.5]} 32... Rxc3 {[%clk 0:00:03.6]} 33. a5
{[%clk 0:01:18.6]} 33... Rxh3 {[%clk 0:00:03.7]} 34. Kg2 {[%clk 0:01:15.9]}
34... Ra3 {[%clk 0:00:04.1]} 35. f3 {[%clk 0:01:15.4]} 35... Kf6 {[%clk
0:00:04.5]} 36. Rd5 {[%clk 0:01:15.7]} 36... g6 {[%clk 0:00:03.6]} 37. Kg3
{[%clk 0:01:16.1]} 37... h5 {[%clk 0:00:03.7]} 38. Kf4 {[%clk 0:01:15.7]} 38...
Ra1 {[%clk 0:00:02.1]} 39. Rd6+ {[%clk 0:01:14.8]} 39... Kf7 {[%clk 0:00:02]}
40. a6 {[%clk 0:01:14.7]} 40... Ra3 {[%clk 0:00:01.6]} 41. Rb6 {[%clk
0:01:13.9]} 41... Kg7 {[%clk 0:00:01.4]} 42. e5 {[%clk 0:01:10.1]} 42... Kh6
{[%clk 0:00:01.5]} 43. e6 {[%clk 0:01:08.3]} 43... h4 {[%clk 0:00:01.1]} 44. e7
{[%clk 0:01:06.8]} 1-0

[Event "Late-Titled-Tuesday-Blitz-October-10-2023"]
[Site "Chess.com"]
[Date "2023.10.10"]
[Round "7"]
[White "jcibarra"]
[Black "hellokostya"]
[Result "1-0"]
[WhiteElo "2891"]
[BlackElo "2637"]
[TimeControl "180+1"]
[EndTime "15:11:54 PDT"]
[Termination "jcibarra won by resignation"]

1. e4 {[%clk 0:03:00.9]} 1... c5 {[%clk 0:02:58.6]} 2. Nf3 {[%clk 0:03:00.8]}
2... Nc6 {[%clk 0:02:58.7]} 3. Nc3 {[%clk 0:03:00.4]} 3... e5 {[%clk 0:02:58.5]}
4. Bc4 {[%clk 0:03:00]} 4... d6 {[%clk 0:02:58.5]} 5. d3 {[%clk 0:03:00.6]} 5...
h6 {[%clk 0:02:58.5]} 6. Nd2 {[%clk 0:02:58.3]} 6... g6 {[%clk 0:02:58.1]} 7. h4
{[%clk 0:02:57.7]} 7... Bg7 {[%clk 0:02:56.8]} 8. h5 {[%clk 0:02:57.6]} 8... g5
{[%clk 0:02:57]} 9. Nf1 {[%clk 0:02:57.6]} 9... Nge7 {[%clk 0:02:56.7]} 10. Ne3
{[%clk 0:02:55.8]} 10... O-O {[%clk 0:02:55.4]} 11. a4 {[%clk 0:02:46.7]} 11...
Be6 {[%clk 0:02:48.5]} 12. Ncd5 {[%clk 0:02:43.4]} 12... b6 {[%clk 0:02:41.8]}
13. c3 {[%clk 0:02:39.4]} 13... Qd7 {[%clk 0:02:35.4]} 14. Qf3 {[%clk
0:02:36.4]} 14... Kh8 {[%clk 0:02:23.2]} 15. Nf6 {[%clk 0:02:30.2]} 15... Qd8
{[%clk 0:02:19.8]} 16. Neg4 {[%clk 0:02:22.7]} 16... Ng8 {[%clk 0:02:14.8]} 17.
Nxg8 {[%clk 0:01:48.9]} 17... Kxg8 {[%clk 0:02:10.9]} 18. Ne3 {[%clk 0:01:48.1]}
18... Ne7 {[%clk 0:02:06.7]} 19. g4 {[%clk 0:01:46.9]} 19... Qd7 {[%clk
0:01:59.1]} 20. Bb5 {[%clk 0:01:46.5]} 20... Qc8 {[%clk 0:01:55.6]} 21. Nf5
{[%clk 0:01:45]} 21... Bxf5 {[%clk 0:01:49.9]} 22. gxf5 {[%clk 0:01:44.9]} 22...
Bf6 {[%clk 0:01:49.1]} 23. Bc4 {[%clk 0:01:39.4]} 23... d5 {[%clk 0:01:42]} 24.
Bxd5 {[%clk 0:01:37.5]} 24... Nxd5 {[%clk 0:01:42.1]} 25. exd5 {[%clk
0:01:38.3]} 25... c4 {[%clk 0:01:42.1]} 26. O-O {[%clk 0:01:29.6]} 26... Rd8
{[%clk 0:01:38.6]} 27. Rd1 {[%clk 0:01:26]} 27... cxd3 {[%clk 0:01:30.2]} 28.
Qxd3 {[%clk 0:01:23.1]} 28... Rd7 {[%clk 0:01:21.7]} 29. Qe4 {[%clk 0:01:22.2]}
29... a6 {[%clk 0:01:11.9]} 30. c4 {[%clk 0:01:19.5]} 30... Rb8 {[%clk
0:01:07.8]} 31. Be3 {[%clk 0:01:19]} 31... Qc7 {[%clk 0:01:05.2]} 32. a5 {[%clk
0:01:16.2]} 32... bxa5 {[%clk 0:01:02.5]} 33. c5 {[%clk 0:01:16.8]} 33... Rxb2
{[%clk 0:01:02]} 34. d6 {[%clk 0:01:13.2]} 34... Qd8 {[%clk 0:00:58.2]} 35. Rab1
{[%clk 0:01:06.2]} 35... Rxb1 {[%clk 0:00:25.3]} 36. Rxb1 {[%clk 0:01:07.1]}
36... Qc8 {[%clk 0:00:25.8]} 37. Qd5 {[%clk 0:01:01.9]} 37... Be7 {[%clk
0:00:23.4]} 38. Qxe5 {[%clk 0:00:54.4]} 38... Bf8 {[%clk 0:00:23.7]} 39. Bd4
{[%clk 0:00:53.5]} 39... f6 {[%clk 0:00:21.5]} 40. Qxf6 {[%clk 0:00:50.6]} 40...
Bg7 {[%clk 0:00:20.2]} 41. Qe6+ {[%clk 0:00:50.9]} 41... Kh7 {[%clk 0:00:18.1]}
42. Qg6+ {[%clk 0:00:49.8]} 42... Kh8 {[%clk 0:00:12.9]} 43. Qxh6+ {[%clk
0:00:49.7]} 43... Kg8 {[%clk 0:00:12.4]} 44. Qe6+ {[%clk 0:00:50.1]} 44... Kh7
{[%clk 0:00:10.8]} 45. Qg6+ {[%clk 0:00:49.9]} 45... Kh8 {[%clk 0:00:11.2]} 46.
f6 {[%clk 0:00:48.1]} 1-0

[Event "Late-Titled-Tuesday-Blitz-October-10-2023"]
[Site "Chess.com"]
[Date "2023.10.10"]
[Round "7"]
[White "Blackwhite017"]
[Black "Kostukov_Alex"]
[Result "0-1"]
[WhiteElo "2037"]
[BlackElo "2380"]
[TimeControl "180+1"]
[EndTime "15:11:54 PDT"]
[Termination "Kostukov_Alex won by resignation"]

1. e4 {[%clk 0:03:00.9]} 1... c5 {[%clk 0:02:52.3]} 2. Nf3 {[%clk 0:03:00.5]}
2... g6 {[%clk 0:02:52.9]} 3. g3 {[%clk 0:02:56.5]} 3... Bg7 {[%clk 0:02:52.4]}
4. Bg2 {[%clk 0:02:55.3]} 4... Nc6 {[%clk 0:02:53]} 5. O-O {[%clk 0:02:52.3]}
5... e5 {[%clk 0:02:53.5]} 6. c3 {[%clk 0:02:50.3]} 6... Nge7 {[%clk 0:02:53.5]}
7. d4 {[%clk 0:02:49.3]} 7... cxd4 {[%clk 0:02:52.5]} 8. cxd4 {[%clk 0:02:50.2]}
8... exd4 {[%clk 0:02:53.1]} 9. Bf4 {[%clk 0:02:43.4]} 9... d5 {[%clk
0:02:50.6]} 10. exd5 {[%clk 0:02:37.2]} 10... Nxd5 {[%clk 0:02:50.6]} 11. Re1+
{[%clk 0:02:37]} 11... Be6 {[%clk 0:02:28.8]} 12. Bg5 {[%clk 0:02:36.2]} 12...
Qd7 {[%clk 0:02:22.7]} 13. Na3 {[%clk 0:02:17.6]} 13... O-O {[%clk 0:02:19]} 14.
Nb5 {[%clk 0:02:11.4]} 14... h6 {[%clk 0:02:10.4]} 15. Bd2 {[%clk 0:02:01.9]}
15... a6 {[%clk 0:02:07]} 16. Na3 {[%clk 0:01:57.6]} 16... b5 {[%clk 0:02:03.9]}
17. Rc1 {[%clk 0:01:51.6]} 17... Rfd8 {[%clk 0:01:59.1]} 18. Re4 {[%clk
0:01:28.8]} 18... Ndb4 {[%clk 0:01:47.1]} 19. Bxb4 {[%clk 0:01:09.4]} 19... Nxb4
{[%clk 0:01:46.3]} 20. Nxd4 {[%clk 0:00:56.4]} 20... Nxa2 {[%clk 0:01:14.6]} 21.
Rc2 {[%clk 0:00:56.3]} 21... Bxd4 {[%clk 0:01:01.7]} 22. Rxd4 {[%clk 0:00:54.6]}
22... Qxd4 {[%clk 0:01:01.4]} 23. Qxd4 {[%clk 0:00:54.6]} 23... Rxd4 {[%clk
0:01:01.4]} 24. Bxa8 {[%clk 0:00:55]} 24... Bh3 {[%clk 0:00:55.7]} 25. f4 {[%clk
0:00:49.9]} 25... Nb4 {[%clk 0:00:50.7]} 26. Re2 {[%clk 0:00:42.5]} 26... Rd1+
{[%clk 0:00:43]} 27. Kf2 {[%clk 0:00:41.7]} 27... Nd3+ {[%clk 0:00:33.4]} 28.
Ke3 {[%clk 0:00:37.5]} 28... Nc1 {[%clk 0:00:33.5]} 29. Rd2 {[%clk 0:00:26.9]}
29... Re1+ {[%clk 0:00:20.9]} 30. Kd4 {[%clk 0:00:17.5]} 30... Nb3+ {[%clk
0:00:19.1]} 0-1